Cogmind - Beta 13 @@@ ROGUE MODE // 2024.04.03 @ 16:54:23 Player: djrubbie Result: Destroyed by HC-RE8(R) with Subdweller Machine Gun Performance ------------- Evolutions (0) 0 Regions Visited (2) 400 Robots Destroyed (22) 110 Value Destroyed (587) 587 Prototype IDs (0) 0 Alien Tech Used (0) 0 Bonus (0) 0 TOTAL SCORE: 1097 Bonus ------- None Cogmind --------- Core Integrity 0/250 Matter 248/300 Energy 100/100 System Corruption 0% Temperature Cool (0) Movement Core (450) Ox8 Location -10/Subcaves Parts ------- > --- POWER (1) -------- (None) > --- PROPULSION (2) --- (None) > --- UTILITY (2) ------ Large Storage Unit > --- WEAPON (2) ------- Slug Cannon > --- INVENTORY (15) --- Light Ion Engine Aluminum Leg Improved Heat Sink High-capacity Storage Unit Improved Terrain Scanner EM Pulse Gun Small Laser Subdweller Laser Beam Cannon Assault Rifle Peak State ------------ > --- POWER ------------ Light Ion Engine > --- PROPULSION ------- Aluminum Leg > --- UTILITY ---------- Large Storage Unit Seismic Detector > --- WEAPON ----------- Slug Cannon Grenade Launcher > --- INVENTORY -------- Improved Heat Sink High-capacity Storage Unit Improved Terrain Scanner EM Pulse Gun Small Laser Beam Cannon Assault Rifle [Rating: 10] Favorites ----------- Power Light Ion Engine Engine Light Ion Engine Propulsion Aluminum Leg Leg Aluminum Leg Wheel Wheel Utility Seismic Detector Device Seismic Detector Storage Large Storage Unit Weapon Small Laser Energy Gun Small Laser Ballistic Gun Assault Rifle Ballistic Cannon Slug Cannon Launcher Grenade Launcher Build | -11 -10 -10 ------- Run | Yrd Mat Sub Slots Evolved . | . . . Power . | . . . Propulsion . | . . . Utility . | . . . Weapon . | . . . Parts Attached 25 | 8 12 5 Power 3 | 1 . 2 Engine 3 | 1 . 2 Core . | . . . Reactor . | . . . Propulsion 6 | 2 3 1 Treads . | . . . Leg 5 | 2 3 . Wheel 1 | . . 1 Hover . | . . . Flight . | . . . Utility 9 | 3 6 . Device 3 | 2 1 . Storage 6 | 1 5 . Processor . | . . . Hackware . | . . . Protection . | . . . Artifact . | . . . Weapon 7 | 2 3 2 Energy Gun 2 | 2 . . Energy Cannon . | . . . Ballistic Gun 2 | . 1 1 Ballistic Cannon 1 | . . 1 Launcher 2 | . 2 . Special Weapon . | . . . Impact Weapon . | . . . Slashing Weapon . | . . . Piercing Weapon . | . . . Special Melee Weapon . | . . . Unidentified Prototypes . | . . . Parts Lost 6 | . . 6 Power 1 | . . 1 Propulsion 2 | . . 2 Utility 1 | . . 1 Weapon 2 | . . 2 Highest Loss Streak 4 | . . 4 To Critical Strikes . | . . . Average Slot Usage (%) 96 | . 100 86 Engine 13 | . 14 13 Leg 24 | . 28 14 Device 13 | . 14 13 Storage 14 | . 14 14 Energy Gun 11 | . 15 4 Ballistic Gun 3 | . 3 4 Ballistic Cannon 1 | . . 3 Launcher 10 | . 9 13 Naked Turns . | . . . Heaviest Build 48 | 11 48 36 Greatest Support 20 | 20 20 20 Greatest Overweight (x) 10 | 3 2 10 Average Overweight (x) 1 | . . 2 Largest Inventory Capacity 25 | 8 25 15 Average Capacity 14 | 7 14 15 Most Carried 10 | 3 9 10 Average Carried 6 | 1 6 7 Final Capacity 15 | 8 15 15 Final Carried 10 | 3 8 10 Class Distribution -------------------- 100% | Mutant Dominant Class ---------------- Mutant | -10/Materials Mutant | -10/Subcaves Resources | -11 -10 -10 ----------- Run | Yrd Mat Sub Matter Collected 635 | 270 236 129 Remotely . | . . . Salvage Created 606 | 112 356 138 Parts 37 | 7 21 9 Haulers Intercepted 1 | . 1 . Recyclers Shooed 2 | . 2 . Parts Field Recycled . | . . . Retrieved Matter . | . . . Parts Self-Destructed 5 | . . 5 Prevented . | . . . Kills | -11 -10 -10 ------- Run | Yrd Mat Sub Combat Hostiles Destroyed 13 | . 6 7 Guns 4 | . 4 . Cannons 1 | . . 1 AOE 8 | . 2 6 Classes Destroyed 8 | 2 5 1 Worker 2 | . 2 . Tunneler 2 | 2 . . Hauler 1 | . 1 . Recycler 2 | 1 1 . Mechanic 1 | . 1 . Watcher 1 | . 1 . Grunt 9 | . 6 3 Subdweller 4 | . . 4 Best Kill Streak 6 | 1 6 3 Combat Bots Only 3 | . 2 3 Max Kills in Single Turn 4 | 1 4 2 Gunslinging . | . . . Exploded 2 | . 1 2 Melee . | . . . Uniques/NPCs Destroyed . | . . . Combat | -11 -10 -10 -------- Run | Yrd Mat Sub Hostile Shots Fired 78 | . 34 44 Missed 19 | . 9 10 Damage Taken 1269 | . 369 900 Core 267 | . 56 211 Absorbed by Shields . | . . . Core Remaining (%) 100 | 100 . . Volleys Fired 58 | 5 31 22 Largest 2 | 2 2 2 Hottest 80 | 80 80 78 Shots Fired 92 | 10 51 31 Gun 66 | 10 43 13 Cannon 7 | . . 7 Launcher 19 | . 8 11 Special . | . . . Kinetic 19 | . 9 10 Thermal 54 | 10 34 10 Explosive 19 | . 8 11 Electromagnetic . | . . . Robot Hit Streak 10 | 4 10 10 Robot Miss Streak 5 | 1 4 5 Penetration Max . | . . . Secondary Targets . | . . . Shots Hit Robots 59 | 7 33 19 Core Hits 45 | 4 25 16 Critical Kills 1 | . . 1 Critical Parts Destroyed . | . . . Critical Strikes 1 | . . 1 Destroy 1 | . . 1 Melee Attacks . | . . . Impact . | . . . Slashing . | . . . Piercing . | . . . Sneak Attacks . | . . . Combat Hostiles . | . . . Follow-up Attacks . | . . . Damage Inflicted 1696 | 80 768 848 Guns 483 | 80 313 90 Cannons 75 | . . 75 Explosions 1133 | . 450 683 Melee . | . . . Ramming 5 | . 5 . Kinetic 185 | . 95 90 Thermal 373 | 80 218 75 Explosive 1133 | . 450 683 Electromagnetic . | . . . Impact . | . . . Slashing . | . . . Piercing . | . . . Highest Corruption . | . . . Average Corruption . | . . . Corruption Purged . | . . . Corruption Blocked . | . . . Overload Shots . | . . . Overflow Damage 17 | . 2 15 Projectiles . | . . . Explosions 17 | . 2 15 Melee . | . . . Knockbacks 2 | . . 2 Impact . | . . . Kinetic 2 | . . 2 Secondary . | . . . Self-Inflicted Damage 173 | . 31 142 Shots 5 | . 1 4 Rammed . | . . . Targets Rammed 1 | . 1 . Kicked 1 | . 1 . Crushed . | . . . Highest Temperature 197 | 36 197 . Average Temperature 70 | 19 80 . Received Heat Transfer 312 | . 255 57 Siege Activations . | . . . Robots Corrupted . | . . . Combat Hostiles . | . . . Parts Fried . | . . . Impact Corruptions . | . . . Robots Melted . | . . . Combat Hostiles . | . . . Parts Melted 1 | . 1 . Heat Transferred 850 | 175 500 175 Parts Sabotaged . | . . . Parts Stolen . | . . . Parts Stripped . | . . . Power Chain Reactions . | . . . Alert | -11 -10 -10 ------- Run | Yrd Mat Sub Peak Influence 166 | 15 166 . Initial 9 | . 9 . Average 19 | 6 20 . Maximum Alert Level . | . . . Low Security (%) 100 | 100 100 . Level 1 . | . . . Level 2 . | . . . Level 3 . | . . . Level 4 . | . . . Level 5 . | . . . High Security . | . . . Max Security . | . . . Squads Dispatched 1 | . 1 . Investigation . | . . . Extermination . | . . . Reinforcement 1 | . 1 . Assault . | . . . Garrison . | . . . Intercept . | . . . Searches Triggered . | . . . Construction Impeded . | . . . Haulers Reinforced . | . . . Active Scanning Responses . | . . . Cargo Convoy Interrupts . | . . . Stealth | -11 -10 -10 --------- Run | Yrd Mat Sub Distress Signals . | . . . Communications Jammed . | . . . Distress Signals . | . . . Times Spotted 25 | . 15 10 Peak Tracking Total 3 | . 2 3 Tactical Retreats 1 | . 1 . Traps | -11 -10 -10 ------- Run | Yrd Mat Sub Traps Triggered . | . . . Indirectly . | . . . Trap Hack Attempts . | . . . Triggered . | . . . Disarmed . | . . . Reprogrammed . | . . . Reused . | . . . Traps Extracted . | . . . Installed . | . . . Triggered 2 | . . 2 Machines | -11 -10 -10 ---------- Run | Yrd Mat Sub Machines Disabled 1 | . 1 . Max in Single Turn 1 | . 1 . Machines Repaired . | . . . Machines Dismantled . | . . . Machines Sabotaged . | . . . Overloaded Fab Kills . | . . . Hacking | -11 -10 -10 --------- Run | Yrd Mat Sub Machines Accessed 2 | . 2 . Terminals 1 | . 1 . Fabricators . | . . . Repair Stations . | . . . Recycling Units 1 | . 1 . Scanalyzers . | . . . Garrison Access . | . . . Total Hacks 4 | . 4 . Successful 3 | . 3 . Failed 1 | . 1 . Catastrophic . | . . . Database Lockouts . | . . . Manual . | . . . Terminals 3 | . 3 . Fabricators . | . . . Repair Stations . | . . . Recycling Units 1 | . 1 . Scanalyzers . | . . . Garrison Access . | . . . Terminal Hacks 2 | . 2 . Record 2 | . 2 . Fabricator Hacks . | . . . Repair Station Hacks . | . . . Recycling Unit Hacks 1 | . 1 . Report Inventory 1 | . 1 . Scanalyzer . | . . . Garrison Access Hacks . | . . . Unauthorized Hacks . | . . . Terminals . | . . . Fabricators . | . . . Repair Stations . | . . . Recycling Units . | . . . Scanalyzers . | . . . Garrison Access . | . . . Data Cores Recovered . | . . . Used . | . . . Hacking Detections 1 | . 1 . Full Trace Events . | . . . Feedback Events . | . . . Feedback Blocked . | . . . Robot Schematics Acquired . | . . . Robots Built . | . . . Authchips . | . . . Time . | . . . Total Robot Build Rating . | . . . Part Schematics Acquired . | . . . Parts Built . | . . . Authchips . | . . . Time . | . . . Total Part Build Rating . | . . . Parts Repaired . | . . . Time . | . . . Parts Recycled . | . . . Recycled Matter . | . . . Retrieved Matter . | . . . Retrieved Components . | . . . Parts Scanalyzed . | . . . Part Schematics Acquired . | . . . Parts Damaged . | . . . Bothacking | -11 -10 -10 ------------ Run | Yrd Mat Sub Used RIF Installer . | . . . Robots Hacked . | . . . Non-combat . | . . . Combat . | . . . Robot Hacks Applied . | . . . Relay Couplers Released . | . . . Fabnet Peak Effective % . | . . . Robots Rewired . | . . . Allies Hacked . | . . . Hacks Repelled . | . . . Allies | -11 -10 -10 -------- Run | Yrd Mat Sub Total Allies . | . . . Largest Group . | . . . Highest-Rated Group . | . . . Highest-Rated Ally . | . . . Total Orders . | . . . Ally Attacks . | . . . Total Damage . | . . . Kills . | . . . Allies Corrupted . | . . . Allies Melted . | . . . Intel | -11 -10 -10 ------- Run | Yrd Mat Sub Robot Analysis Total . | . . . Derelict Logs Recovered . | . . . Drone Launches . | . . . Drone Recoveries . | . . . Exploration | -11 -10 -10 ------------- Run | Yrd Mat Sub Turns Passed 3096 | 175 2096 825 Spaces Moved 1397 | 118 911 368 Core 14 | 11 . 3 Treads . | . . . Legs 1261 | 107 911 243 Wheels 122 | . . 122 Hover . | . . . Flight . | . . . Fastest Speed 50 | 50 120 125 Average Speed 185 | 118 189 196 Slowest Speed 550 | 200 260 550 Overloaded Moves . | . . . Propulsion Burnouts . | . . . Robots Hopped . | . . . Cave-ins Triggered . | . . . Exploration Rate (%) 36 | 5 75 30 Regions Visited 2 Branch Regions 1 Pre-discovered Areas . | . . . Known Exits Taken . | . . . Unknown Exits Taken 2 | 1 1 . Scrap Searched . | . . . Spaces Dug . | . . . Terrain Destroyed 106 | . 35 71 Melee . | . . . Projectile 1 | . . 1 AOE 105 | . 35 70 Terrain Rammed . | . . . Walls Destroyed . | . . . Machines Disabled . | . . . Actions | -11 -10 -10 --------- Run | Yrd Mat Sub Total 1810 | 142 1226 442 Wait 287 | . 253 34 Move 1395 | 117 910 368 Hop . | . . . Pick Up 27 | 11 12 4 Fast Attach . | . . . Attach 8 | 7 . 1 Detach . | . . . Swap 17 | 1 12 4 Drop 9 | 1 7 1 Fire 58 | 5 31 22 Melee . | . . . Ram . | . . . Kick 1 | . 1 . Crush . | . . . Escape Stasis . | . . . Rewire 8 | . . 8 Trap . | . . . Miscellaneous . | . . . Route ------- -11/Scrapyard -10/Materials (discovered 4 exits: [*Mat x2] / [*Min] / [*Sub]) -10/Subcaves History --------- Turn | Location | Event 15 | -11/Scrapyard | Discovered new exit (range 16) 176 | -11/Scrapyard | Entered Materials 303 | -10/Materials | Build established: Mutant 608 | -10/Materials | Discovered new exit (range 7) 828 | -10/Materials | Discovered new exit (range 7) 1430 | -10/Materials | Discovered new exit (range 8) 2237 | -10/Materials | Discovered new exit (range 10) 2272 | -10/Materials | Entered Subcaves 2460 | -10/Subcaves | Shifting Twisted Machinery released Battle Cannon 2463 | -10/Subcaves | Shifting Twisted Machinery released Piercing Trap 3070 | -10/Subcaves | A Subdweller sparked back to life 3070 | -10/Subcaves | A Subdweller sparked back to life 3070 | -10/Subcaves | A Subdweller sparked back to life 3079 | -10/Subcaves | Core integrity fell below 50% 3085 | -10/Subcaves | Core integrity fell below 20% 3097 | -10/Subcaves | Destroyed by HC-RE8(R) with Subdweller Machine Gun Last Messages --------------- Attempting to rewire OD-AX7(R). OD-AX7(R) is broken beyond repair. HC-RE8(R) creaks and sparks as it begins to move. 15-Y69(R) creaks and sparks as it begins to move. OD-AX7(R) creaks and sparks as it begins to move. HC-RE8(R) knocked back. Seismic Detector destroyed. Destroyed Seismic Detector. Grenade Launcher destroyed. Destroyed Grenade Launcher. Wheel destroyed. OD-AX7(R) suffers critical hit (Destroy). OD-AX7(R) destroyed. HC-RE8(R) knocked back. Ion Engine destroyed. 15-Y69(R) affixes Scrap Shield Fragment to Scrap Shield. Map ----- +----------------------------------------------------+ | ???????# #### ^ ### ### ##??????????? | | ???????# ## ## ## ##????????????? | | ???????# ## #### ##?????????????? | | ???????# ## ##### #??????????????? | | ???????## ## #?###??????????????? | | ???????## ## ## #??????????????????? | | ???????# ### # #??????????????????? | | ???????# #?# ### # ##?????????????????? | | ???????# #?####?## ### ##????????????????? | | ???????# #####???????#### ######???????????? | | ???????#####??????????### ##???????#### | | ????????????????????? # ###?????# | | ????????????????? % % ####?### | | ????????????????? % ### | | ?????????????????# # ## ## % | | ???????????????????#?## ### #### ## ### | | ?????????????????????# #?###???## #####?## | | ?????????????????????## #????????## #???### | | ???????????????????#?## ##?????##?## #???# | | ?????????????# ### # ######;#### ## ##### | | ??????????????? ## ### # # ## | | ??????????????????????# # | | ????????????????????### << # | | ????????????????????# % # # # ## ### | | ????????????????????# R###################?## | | ????????????????????##< @%R#????????????????????# | | ????????????????????# <<#????????????????????? | | ????????????????????# #????????????????????? | | ????????????????????# #????????????????????? | | ????????????????????#########????????????????????? | | ?????????????????????????????????????????????????? | | ?????????????????????????????????????????????????? | | ?????????????????????????????????????????????????? | | ?????????????????????????????????????????????????? | | ?????????????????????????????????????????????????? | | ?????????????????????????????????????????????????? | | ?????????????????????????????????????????????????? | | ?????????????????????????????????????????????????? | | ?????????????????????????????????????????????????? | | ?????????????????????????????????????????????????? | | ?????????????????????????????????????????????????? | | | | | | | | | | | | | | | | | | | +----------------------------------------------------+ Best States ------------- Heat Dissipation 25 Energy Generation 10 Energy Capacity 250 Matter Stores 300 Matter Capacity 300 Sight Range 16 Terrain Scan Range 16 Terrain Scan Density 10 Evasion (%) 55 Item Schematics ----------------- None Robot Schematics ------------------ None Fabricated ------------ Nothing Alien Tech Used ----------------- None Achievements -------------- None Challenges ------------ None Game ------ Seed DataNeutrinoArachnoskeleton Manual? 0 Play Time 00:39:32 Cumulative 4.4 hours Start 2024.04.03 @ 13:21:51 End 2024.04.03 @ 16:54:23 Sessions 1 Manual Loads 0 Difficulty Rogue Special Mode None Game No. 5 Rogue 5 Adventurer 0 Explorer 0 Win Type - Total 0 Types 0/0/0/0/0/0/0/0/0 Lore% 0 Gallery% 5 Achievement% 3 Wizard Run 0 Options --------- Layout 1 ASCII 0 Keyboard 0 Movement Mouse Keybinds 0 Fullscreen 0 Font 28/SmallcapsGlow Map View 50x35 Zoom Use 0% Tactical HUD 0 Map Filters NONE Filters NONE Steam 1 RUN: 5ca307e7-9dc8-4f80-95c6-c291df366afd